bitfinex/quotes_BTCUSD_20250225
["timestamp","ask_amount","ask_price","bid_price","bid_amount"]
[1740471885720,0.15,90125.0,90115.0,0.03362047]
[1740471885967,0.15,90125.0,90116.0,0.03362047]
[1740471886226,0.15,90125.0,90115.0,0.03362047]
[1740471886471,0.15,90125.0,90117.0,0.03362047]
[1740471886717,0.15,90125.0,90118.0,0.03362047]
[1740471886964,0.15,90125.0,90115.0,0.03362047]
[1740471887198,0.15,90125.0,90116.0,0.03362047]
[1740471887452,0.15,90125.0,90115.0,0.03362047]
[1740471887638,0.15,90125.0,90116.0,0.03362047]
[1740471887798,0.15,90125.0,90115.0,0.03362047]
[1740471889155,0.0793,90124.0,90115.0,0.03362047]
[1740471889362,0.0793,90124.0,90114.0,0.03362047]
[1740471889753,0.0793,90124.0,90115.0,0.03362047]
[1740471889967,0.0793,90124.0,90114.0,0.03362047]
[1740471890171,0.0793,90124.0,90115.0,0.03362047]
[1740471890373,0.0793,90124.0,90114.0,0.03362047]
[1740471890628,0.0793,90124.0,90115.0,0.03362047]
[1740471890777,0.0793,90124.0,90113.0,0.0008482]
[1740471890778,0.15,90123.0,90114.0,0.03362047]
[1740471894085,0.15,90123.0,90114.0,0.03446877]
[1740471894286,0.15,90123.0,90115.0,0.03362047]
[1740471894634,0.15,90125.0,90115.0,0.03362047]
[1740471894821,0.15,90125.0,90116.0,0.0015534]
[1740471895036,1.09953679,90126.0,90118.0,0.01454085]
[1740471895379,0.0016966,90127.0,90120.0,0.01454085]
[1740471895532,0.0016966,90127.0,90122.0,0.01454085]
[1740471895732,1.10123339,90127.0,90123.0,0.03517371]
[1740471895917,0.15,90126.0,90125.0,0.01454085]
[1740471896138,0.15,90126.0,90125.0,0.04816132]
[1740471896336,1.10123339,90127.0,90125.0,0.04816132]
[1740471896549,1.10123339,90127.0,90126.0,0.04816132]
[1740471896746,1.10123339,90127.0,90126.0,0.05443154]
[1740471898003,1.25123339,90127.0,90126.0,0.04816132]
[1740471898379,1.25123339,90127.0,90126.0,0.03362047]
[1740471898571,0.15,90126.0,90118.0,0.03362047]
[1740471898776,0.15,90126.0,90119.0,0.01454085]
[1740471899016,0.15,90126.0,90121.0,0.01454085]
[1740471899194,0.15,90126.0,90122.0,0.03362047]
[1740471899395,0.15,90126.0,90118.0,0.03362047]
[1740471899590,0.15,90126.0,90119.0,0.03362047]
[1740471899591,0.1998,90126.0,90119.0,0.03362047]
[1740471899799,0.1998,90126.0,90120.0,0.03362047]
[1740471900036,0.1998,90126.0,90121.0,0.03362047]
[1740471900382,0.1998,90126.0,90122.0,0.03362047]
[1740471900577,0.1998,90126.0,90115.0,0.03362047]
[1740471901197,0.19919937,90126.0,90115.0,0.03362047]
[1740471902237,0.14939937,90126.0,90116.0,0.00155345]
[1740471902408,0.14939937,90126.0,90114.0,0.0008483]
[1740471902409,0.14939937,90126.0,90117.0,0.03362047]
[1740471902630,0.05501362,90125.0,90118.0,0.03362047]
[1740471902806,0.1231,90124.0,90119.0,0.03362047]
[1740471903016,0.1231,90124.0,90120.0,0.03362047]
[1740471903354,0.05540463,90122.0,90121.0,0.03346407]
[1740471903561,0.05540463,90122.0,90114.0,0.0008483]
[1740471903562,0.05540463,90122.0,90115.0,0.03346407]
[1740471903716,0.05540463,90122.0,90116.0,0.03346407]
[1740471903917,0.05540463,90122.0,90117.0,0.03346407]
[1740471904118,0.00025692,90121.0,90118.0,0.03346407]
[1740471904324,0.05583373,90120.0,90115.0,0.03346407]
[1740471904547,0.05583373,90120.0,90116.0,0.03346407]
[1740471904701,0.05583373,90120.0,90117.0,0.03346407]
[1740471904911,0.00025692,90121.0,90115.0,0.03346407]
[1740471905117,0.00025692,90121.0,90116.0,0.03346407]
[1740471905359,0.20556549,90118.0,90108.0,0.00071686]
[1740471905516,0.32547155,90114.0,90109.0,0.0340411]
[1740471905715,1.42500834,90114.0,90109.0,0.0340411]
[1740471905911,0.00025692,90113.0,90109.0,0.0340411]
[1740471906415,0.15,90112.0,90109.0,0.0340411]
[1740471906814,1.09969678,90113.0,90110.0,0.08943444]
[1740471906928,1.09969678,90113.0,90111.0,0.0340411]
[1740471907134,1.09969678,90113.0,90112.0,0.0340411]
[1740471907557,1.09969678,90113.0,90111.0,0.0340411]
[1740471907794,1.09969678,90113.0,90108.0,0.00071686]
[1740471907795,1.09969678,90113.0,90109.0,0.0340411]
[1740471907996,1.09969678,90113.0,90110.0,0.0340411]
[1740471908173,1.09969678,90113.0,90109.0,0.0340411]
[1740471908371,0.15,90112.0,90110.0,0.0340411]
[1740471908600,0.15,90112.0,90109.0,0.0340411]
[1740471908801,0.15,90112.0,90110.0,0.0340411]
[1740471909002,1.09969678,90113.0,90108.0,0.00071686]
[1740471909003,0.15,90110.0,90108.0,0.00071686]
[1740471909208,0.15,90110.0,90109.0,0.03428604]
[1740471909447,0.58614775,90110.0,90109.0,0.03428604]
[1740471909735,0.53369743,90110.0,90101.0,0.0008488]
[1740471909962,0.53369743,90110.0,90108.0,0.03432515]
[1740471910165,0.05575525,90101.0,90050.0,5e-05]
[1740471910296,0.05575525,90101.0,90054.0,0.00240283]
[1740471910297,0.20521431,90098.0,90054.0,0.00240283]
[1740471910498,0.05523584,90095.0,90055.0,0.03411579]
[1740471910697,0.20532884,90093.0,90055.0,0.03411579]
[1740471910957,0.1266,90092.0,90055.0,0.03411579]
[1740471911152,0.05567083,90087.0,90055.0,0.03411579]
[1740471911305,0.20569483,90084.0,90055.0,0.03411579]
[1740471911712,0.05523466,90081.0,90055.0,0.03411579]
[1740471912296,0.20528441,90079.0,90055.0,0.03411579]
[1740471912498,0.05568424,90076.0,90055.0,0.03411579]
[1740471912695,0.05562036,90074.0,90055.0,0.03411579]
[1740471912909,0.05526494,90071.0,90055.0,0.03411579]
[1740471913226,0.05562036,90074.0,90055.0,0.03411579]
[1740471915308,0.15,90075.0,90056.0,0.00155444]
[1740471915545,0.05562036,90074.0,90057.0,0.03411579]
[1740471915744,0.05562036,90074.0,90058.0,0.03411579]
[1740471915968,0.05562036,90074.0,90059.0,0.03411579]
[1740471916157,0.05562036,90074.0,90060.0,0.03411579]
[1740471916459,0.05562036,90074.0,90061.0,0.03411579]
[1740471916636,0.05562036,90074.0,90062.0,0.03411579]
[1740471916839,0.05562036,90074.0,90063.0,0.03411579]
[1740471917042,0.15,90073.0,90064.0,0.03411579]
[1740471917241,0.05583615,90072.0,90065.0,0.03411579]
[1740471917446,0.05583615,90072.0,90066.0,0.03411579]
[1740471917643,0.05583615,90072.0,90067.0,0.03411579]
[1740471917965,0.05583615,90072.0,90068.0,0.03411579]
[1740471918167,0.05562036,90074.0,90069.0,0.03411579]
[1740471918307,0.05562036,90074.0,90070.0,0.03411579]
[1740471918511,0.05562036,90074.0,90071.0,0.03411579]
[1740471918748,0.15,90075.0,90072.0,0.03411579]
[1740471918749,0.08265546,90073.0,90072.0,0.03411579]
[1740471919833,0.06870269,90073.0,90072.0,0.03411579]
[1740471920234,0.05562036,90074.0,90072.0,0.03411579]
[1740471920437,0.05562036,90074.0,90073.0,1e-08]
[1740471920665,0.05562036,90074.0,90056.0,1e-08]
[1740471920865,0.05562036,90074.0,90055.0,0.0008483]
[1740471921041,0.05562036,90074.0,90056.0,1e-08]
[1740471921242,0.05562036,90074.0,90055.0,0.0024027]
[1740471921444,0.05562036,90074.0,90056.0,1e-08]
[1740471922625,0.15,90073.0,90056.0,1e-08]
[1740471923842,0.05562036,90074.0,90056.0,1e-08]
[1740471924602,0.05505617,90071.0,90056.0,1e-08]
[1740471929154,0.05505617,90071.0,90056.0,0.00155448]
[1740471929299,0.05505617,90071.0,90057.0,1e-08]
[1740471929657,0.05505617,90071.0,90055.0,0.0008483]
[1740471929871,0.05505617,90071.0,90056.0,1e-08]
[1740471930056,0.05505617,90071.0,90055.0,0.0008483]
[1740471930355,0.05505617,90071.0,90056.0,1e-08]
[1740471930571,0.05505617,90071.0,90055.0,0.0008483]
[1740471930767,0.05505617,90071.0,90056.0,1e-08]
[1740471930914,0.0557431,90074.0,90055.0,0.0008483]
[1740471931133,0.0557431,90074.0,90056.0,1e-08]
[1740471931333,0.15,90073.0,90056.0,1e-08]
[1740471931578,0.05575242,90072.0,90055.0,0.0008483]
[1740471931780,0.05575242,90072.0,90056.0,1e-08]
[1740471932369,0.05575242,90072.0,90055.0,0.0008483]
[1740471932565,0.05575242,90072.0,90056.0,1e-08]
[1740471932787,0.15,90070.0,90056.0,1e-08]
[1740471933121,0.05597317,90069.0,90056.0,1e-08]
[1740471934093,0.20543607,90075.0,90056.0,1e-08]
[1740471934881,0.20543607,90075.0,90035.0,0.00155466]
[1740471934882,0.06,90072.0,90009.0,0.08943444]
[1740471935110,0.06,90072.0,90020.0,0.08943444]
[1740471935475,0.3279,90071.0,90021.0,0.15224082]
[1740471935657,0.3279,90071.0,90023.0,0.1173]
[1740471935908,0.3279,90071.0,90024.0,0.03494067]
[1740471936081,0.3279,90071.0,90025.0,0.03338642]
[1740471936220,0.3279,90071.0,90026.0,0.00155425]
[1740471936448,0.15,90070.0,90027.0,0.03338642]
[1740471936643,0.05534708,90069.0,90028.0,0.00155426]
[1740471936887,0.05566206,90070.0,90030.0,0.01454085]
[1740471937085,0.05566206,90070.0,90032.0,0.01454085]
[1740471937304,0.20566206,90070.0,90034.0,0.01454085]
[1740471937642,0.20566206,90070.0,90036.0,0.01454085]
[1740471937845,0.15,90070.0,90038.0,0.01454085]
[1740471938020,0.15,90070.0,90040.0,0.01454085]
[1740471938246,0.15,90068.0,90042.0,0.01454085]
[1740471938449,0.15,90068.0,90043.0,0.03494069]
[1740471938590,0.15,90068.0,90045.0,0.01454085]
[1740471938786,0.15,90068.0,90046.0,0.0349407]
[1740471938993,1.59969678,90076.0,90047.0,0.04792727]
[1740471939188,2.69923357,90076.0,90049.0,0.01454085]
[1740471939392,2.69923357,90076.0,90063.0,0.01454085]
[1740471939615,1.59953679,90076.0,90065.0,0.01454085]
[1740471939833,2.69923357,90076.0,90067.0,0.01454085]
[1740471940035,2.69923357,90076.0,90068.0,0.03338642]
[1740471940400,0.15,90075.0,90068.0,0.03338642]
[1740471943176,0.06,90069.0,90068.0,0.02192539]
[1740471943340,0.05566249,90064.0,90063.0,0.03414932]
[1740471943541,0.21,90063.0,90062.0,3e-08]
[1740471943765,0.15,90063.0,90062.0,3e-08]
[1740471944038,0.15,90063.0,90058.0,0.03417769]
[1740471944629,0.06,90062.0,90058.0,0.03417769]
[1740471944832,0.2909,90059.0,90058.0,0.03417769]
[1740471945468,0.1962,90042.0,89980.0,0.3235]
[1740471945797,0.06,90032.0,89981.0,0.03497375]
[1740471945974,2.19923357,90032.0,89982.0,0.03419468]
[1740471946224,2.19923357,90032.0,89980.0,0.3235]
[1740471946225,2.19923357,90032.0,89983.0,0.03497336]
[1740471946628,0.4779,90031.0,89984.0,0.03419468]
[1740471946781,0.28947301,90015.0,89985.0,0.03419468]
[1740471946980,0.0499,90012.0,89986.0,0.03419468]
[1740471947192,0.0019443,90011.0,89987.0,0.03419468]
[1740471947397,0.05555772,90010.0,89988.0,0.03497449]
[1740471947593,0.15,90011.0,89989.0,0.03419468]
[1740471947795,0.05555772,90010.0,89990.0,0.00077967]
[1740471948036,0.15,90008.0,89991.0,0.03419468]
[1740471948241,0.15,90006.0,89988.0,0.03419468]
[1740471948442,0.15,90006.0,89989.0,0.03497473]
[1740471948635,0.15,90006.0,89990.0,0.03419468]
[1740471948843,0.15,90006.0,89992.0,0.01454085]
[1740471949043,0.3279,90007.0,89994.0,0.01454085]
[1740471949250,2.19923357,90015.0,90000.0,0.00012699]
[1740471949452,2.19923357,90015.0,90008.0,0.00012699]
[1740471949713,2.19923357,90015.0,90010.0,0.01454085]
[1740471949914,0.15,90014.0,90012.0,0.01454085]
[1740471950117,2.19923357,90015.0,90014.0,0.01454085]
[1740471950333,2.19923357,90015.0,90014.0,0.04964119]
[1740471950743,2.19923357,90015.0,90014.0,0.37314119]
[1740471950947,2.69923357,90015.0,90014.0,0.91516252]
[1740471951149,2.69923357,90015.0,90014.0,1.03246252]
[1740471951787,2.69923357,90015.0,90014.0,1.01326252]
[1740471952470,2.69923357,90015.0,90014.0,1.01313553]
[1740471952673,2.84923357,90015.0,90014.0,0.04886252]
[1740471954906,2.84923357,90015.0,90014.0,0.03517097]
[1740471955260,2.84923357,90015.0,90014.0,0.04971182]
[1740471956034,2.84923357,90015.0,90014.0,0.04958483]
[1740471956233,2.84923357,90015.0,90014.0,0.04971182]
[1740471956757,2.84923357,90015.0,90014.0,0.04958483]
[1740471956890,2.84923357,90015.0,90014.0,0.03504398]
[1740471958514,2.84923357,90015.0,90014.0,0.04958483]
[1740471961194,1.74969678,90015.0,90014.0,0.04958483]
[1740471961392,2.84923357,90015.0,90014.0,0.04958483]
[1740471961801,2.8666608,90015.0,90014.0,0.04958483]
[1740471962408,2.84923357,90015.0,90014.0,0.04958483]
[1740471964273,2.84923357,90015.0,90014.0,0.03504398]
[1740471965054,2.84923357,90015.0,90014.0,0.04958483]
[1740471965212,2.84923357,90015.0,90014.0,0.04971182]
[1740471965412,2.84923357,90015.0,90014.0,0.04958483]
[1740471966278,2.8666624,90015.0,90014.0,0.04958483]
[1740471966858,2.868361,90015.0,90014.0,0.04958483]
[1740471967282,2.63366834,90015.0,90014.0,0.04958483]
[1740471968628,2.93524034,90015.0,90014.0,0.03504398]
[1740471968829,2.91781151,90015.0,90014.0,0.03504398]
[1740471969141,2.85093151,90015.0,90014.0,0.04958483]
[1740471969889,2.85093151,90015.0,90014.0,0.03504398]
[1740471970078,2.91781151,90015.0,90014.0,0.03504398]
[1740471970869,2.85093151,90015.0,90014.0,0.04958483]
[1740471971114,2.82582778,90015.0,90014.0,0.04958483]
[1740471971700,2.67582778,90015.0,90014.0,0.04971182]
[1740471972097,2.70093178,90015.0,90014.0,0.05049014]
[1740471972356,2.85093178,90015.0,90014.0,0.08317782]
[1740471972589,2.70093178,90015.0,90014.0,0.08317782]
[1740471972788,2.85093178,90015.0,90014.0,0.08317782]
[1740471973000,2.70093178,90015.0,90014.0,0.08317782]
[1740471973181,2.85093178,90015.0,90014.0,0.08305083]
[1740471973349,2.85093178,90015.0,90014.0,0.08317782]
[1740471974271,2.85093178,90015.0,90014.0,0.08305083]
[1740471974683,2.85093178,90015.0,90014.0,0.08317782]
[1740471974879,2.85093178,90015.0,90014.0,0.08305083]
[1740471975106,2.85093178,90015.0,90014.0,0.08317782]
[1740471975570,2.85093178,90015.0,90014.0,0.04971182]
[1740471976103,2.86835896,90015.0,90014.0,0.04958483]
[1740471976518,2.86835896,90015.0,90014.0,0.03504398]
[1740471976720,2.86542255,90015.0,90014.0,0.03504398]
[1740471976924,2.84799537,90015.0,90014.0,0.03504398]
[1740471977137,2.93049537,90015.0,90014.0,0.03504398]
[1740471977770,3.00031137,90015.0,90014.0,0.03504398]
[1740471979551,3.00031137,90015.0,90014.0,0.04530014]
[1740471980340,0.7341978,90015.0,90014.0,0.05984099]
[1740471980539,0.6516978,90015.0,90014.0,0.05984099]
[1740471980737,0.5016978,90015.0,90014.0,0.05984099]
[1740471981011,0.6516978,90015.0,90014.0,0.04530014]
[1740471981152,0.51223923,90015.0,90014.0,0.04530014]
[1740471982296,0.65169823,90015.0,90014.0,0.04530014]
[1740471983088,0.61683118,90015.0,90014.0,0.04530014]
[1740471983655,0.61677411,90015.0,90014.0,0.04530014]
[1740471984174,0.76285411,90015.0,90014.0,0.04530014]
[1740471984809,0.79777811,90015.0,90014.0,0.04530014]
[1740471985088,0.79777811,90015.0,90014.0,0.02786758]
[1740471985517,1.12567811,90015.0,90014.0,0.02786758]
[1740471985721,1.23135112,90015.0,90014.0,0.02786758]
[1740471985937,1.23135112,90015.0,90014.0,0.01110546]
[1740471986302,1.29135112,90015.0,90014.0,0.01110546]
[1740471986501,0.21688,90011.0,90000.0,5e-05]
[1740471986722,0.0458,90008.0,90000.0,5e-05]
[1740471986966,0.41483831,90001.0,90000.0,5e-05]
[1740471987131,2.94197188,90001.0,90000.0,5e-05]
[1740471987344,2.88638658,90001.0,90000.0,5e-05]
[1740471987520,2.94197188,90001.0,90000.0,5e-05]
[1740471988166,0.15,90000.0,89978.0,0.01675664]
[1740471988376,0.20528392,89992.0,89979.0,0.00078032]
[1740471988616,0.06688,89985.0,89980.0,0.01675664]
[1740471988855,0.06688,89983.0,89957.0,0.0007805]
[1740471989066,0.06688,89983.0,89967.0,0.01675664]
[1740471989290,0.21688,89981.0,89950.0,5e-05]
[1740471989502,0.272838,89979.0,89967.0,0.01675664]
[1740471989625,0.272838,89979.0,89966.0,0.00091442]
[1740471989838,0.05987301,89974.0,89967.0,0.01675664]
[1740471990066,0.05987301,89974.0,89966.0,0.00091442]
[1740471990067,0.06688,89968.0,89966.0,0.00091442]
[1740471990295,0.62588,89967.0,89966.0,0.00091442]
[1740471990699,0.68575301,89967.0,89966.0,0.03499627]
[1740471991261,0.62588,89967.0,89966.0,0.03499627]
[1740471991933,0.559,89967.0,89966.0,0.03499627]
[1740471992377,0.62588,89967.0,89966.0,0.03499627]
[1740471992585,0.559,89967.0,89966.0,0.03499627]
[1740471994221,0.2311,89967.0,89966.0,0.03499627]
[1740471994428,0.15,89967.0,89966.0,0.04953712]
[1740471994644,2.69923357,89974.0,89967.0,0.01454085]
[1740471994859,2.69923357,89974.0,89969.0,0.01454085]
[1740471995060,2.69923357,89974.0,89971.0,0.01454085]
[1740471995269,2.69923357,89974.0,89973.0,0.01454085]
[1740471995508,2.69923357,89974.0,89973.0,0.0486227]
[1740471996894,1.59969678,89974.0,89973.0,0.0486227]
[1740471997095,2.84923357,89974.0,89973.0,0.0486227]
[1740471998485,2.84923357,89974.0,89973.0,0.03408185]
[1740471999028,2.84923357,89974.0,89973.0,0.0486227]
[1740472000045,2.69923357,89974.0,89973.0,0.05881611]
[1740472000247,2.69923357,89974.0,89973.0,0.0589431]
[1740472000450,2.68923357,89974.0,89973.0,0.0589431]
[1740472001405,2.83923357,89974.0,89973.0,0.05881611]
[1740472001613,2.84923357,89974.0,89973.0,0.05881611]
[1740472001781,2.84923357,89974.0,89973.0,0.0589431]
[1740472001961,2.84923357,89974.0,89973.0,0.05881611]
[1740472003293,2.84923357,89974.0,89973.0,0.04427526]
[1740472004279,2.86666956,89974.0,89973.0,0.04427526]
[1740472004981,3.01614956,89974.0,89973.0,0.04427526]
[1740472008044,3.34404956,89974.0,89973.0,0.04427526]
[1740472009030,3.40392257,89974.0,89973.0,0.04427526]
[1740472009613,3.50186049,89974.0,89973.0,0.04427526]
[1740472010234,3.32661357,89974.0,89973.0,0.04427526]
[1740472012026,3.32661357,89974.0,89973.0,0.03408185]
[1740472013132,3.17661357,89974.0,89973.0,0.03408185]
[1740472014108,3.3014974,89974.0,89973.0,0.03408185]
[1740472014309,3.3014974,89974.0,89973.0,0.04429673]
[1740472015165,3.3266134,89974.0,89973.0,0.04429673]
[1740472015364,3.3266134,89974.0,89973.0,0.04514643]
[1740472015585,3.3283128,89974.0,89973.0,0.04514643]
[1740472017735,3.0004128,89974.0,89973.0,0.05968728]
[1740472018223,2.7009328,89974.0,89973.0,0.05968728]
[1740472018539,2.7009328,89974.0,89973.0,0.05981427]
[1740472019240,2.7009328,89974.0,89973.0,0.06681427]
[1740472019241,2.8519328,89974.0,89973.0,0.06681427]
[1740472019447,2.8509328,89974.0,89973.0,0.05981427]
[1740472019649,2.8509328,89974.0,89973.0,0.06681427]
[1740472019871,2.7019328,89974.0,89973.0,0.06668728]
[1740472020008,2.7688128,89974.0,89973.0,0.05968728]
[1740472020208,2.8519328,89974.0,89973.0,0.05968728]
[1740472020410,2.9198128,89974.0,89973.0,0.06668728]
[1740472020833,2.8529328,89974.0,89973.0,0.06668728]
[1740472021244,2.69135785,89974.0,89973.0,0.06681427]
[1740472021487,2.56762343,89974.0,89973.0,0.06681427]
[1740472021720,2.56562343,89974.0,89973.0,0.05981427]
[1740472022006,2.56562343,89974.0,89973.0,0.06681427]
[1740472022215,2.63250343,89974.0,89973.0,0.06668728]
[1740472022356,2.63250343,89974.0,89973.0,0.04514643]
[1740472022556,2.91781243,89974.0,89973.0,0.05214643]
[1740472022784,2.99401243,89974.0,89973.0,0.05214643]
[1740472022988,2.99401243,89974.0,89973.0,0.04514643]
[1740472023342,2.99401243,89974.0,89973.0,0.05214643]
[1740472023543,2.99401243,89974.0,89973.0,0.04514643]
[1740472024110,3.32191243,89974.0,89973.0,0.04514643]
[1740472025307,3.32291243,89974.0,89973.0,0.04514643]
[1740472025509,2.22337564,89974.0,89973.0,0.04514643]
[1740472025726,1.12367886,89974.0,89973.0,0.05214643]
[1740472025890,1.12267886,89974.0,89973.0,0.04514643]
[1740472026275,1.12267886,89974.0,89973.0,0.05214643]
[1740472026470,1.12267886,89974.0,89973.0,0.04514643]
[1740472026671,1.14011744,89974.0,89973.0,0.04514643]
[1740472026872,1.14011744,89974.0,89973.0,0.05214643]
[1740472027195,1.14711744,89974.0,89973.0,0.05214643]
[1740472027558,0.51913744,89974.0,89973.0,0.06668728]
[1740472027891,0.3846178,89974.0,89973.0,0.06668728]
[1740472028088,0.6014978,89974.0,89973.0,0.05968728]
[1740472028309,0.5964978,89974.0,89973.0,0.04514643]
[1740472028528,0.5964978,89974.0,89973.0,0.05214643]
[1740472028770,0.6004978,89974.0,89973.0,0.05214643]
[1740472028902,0.30860857,89974.0,89973.0,0.05214643]
[1740472029305,0.30860857,89974.0,89973.0,0.04514643]
[1740472029739,0.30960857,89974.0,89973.0,0.05214643]
[1740472029934,0.65059,89974.0,89973.0,0.04514643]
[1740472030158,0.43371,89974.0,89973.0,0.04514643]
[1740472030383,0.50059,89974.0,89973.0,0.04514643]
[1740472030566,0.49659,89974.0,89973.0,0.04514643]
[1740472030947,0.49659,89974.0,89973.0,0.04714643]
[1740472031144,0.56688,89974.0,89973.0,0.04714643]
[1740472031374,0.56688,89974.0,89973.0,0.06668728]
[1740472031579,0.5,89974.0,89973.0,0.05981427]
[1740472031784,0.5,89974.0,89973.0,0.06081427]
[1740472031959,0.5,89974.0,89973.0,0.06781427]
[1740472032532,0.5,89974.0,89973.0,0.06681427]
[1740472032716,0.65,89974.0,89973.0,0.05981427]
[1740472033120,0.65,89974.0,89973.0,0.06681427]
[1740472033428,0.65,89974.0,89973.0,0.05214643]
[1740472033429,0.71688,89974.0,89973.0,0.05214643]
[1740472033548,0.79258,89974.0,89973.0,0.05214643]
[1740472033753,0.85258,89974.0,89973.0,0.05314643]
[1740472034007,0.91245301,89974.0,89973.0,0.05314643]
[1740472034290,0.85258,89974.0,89973.0,0.05214643]
[1740472034660,0.85358,89974.0,89973.0,0.05214643]
[1740472034882,0.79358,89974.0,89973.0,0.04514643]
[1740472035084,0.79258,89974.0,89973.0,0.02285554]
[1740472035283,0.79258,89974.0,89973.0,0.02985554]
[1740472035523,0.79258,89974.0,89973.0,0.02285554]
[1740472035913,0.7257,89974.0,89973.0,0.02985554]
[1740472036152,0.7257,89974.0,89973.0,0.02285554]
[1740472036330,0.7317,89974.0,89973.0,0.03839639]
[1740472036468,0.7317,89974.0,89973.0,0.04539639]
[1740472037087,0.656,89974.0,89973.0,0.04539639]
[1740472037506,0.65,89974.0,89973.0,0.04439639]
[1740472037910,0.651,89974.0,89973.0,0.04439639]
[1740472038126,0.501,89974.0,89973.0,0.04452338]
[1740472038886,0.5,89974.0,89973.0,0.03752338]
[1740472039117,0.501,89974.0,89973.0,0.07800638]
[1740472039592,0.501,89974.0,89973.0,0.07100638]
[1740472039803,0.501,89974.0,89973.0,0.07800638]
[1740472039947,0.5026968,89974.0,89973.0,0.07800638]
[1740472040157,0.2934565,89974.0,89973.0,0.07800638]
[1740472040586,0.2924565,89974.0,89973.0,0.07800638]
[1740472040802,0.2934565,89974.0,89973.0,0.40928648]
[1740472041004,0.2934565,89974.0,89973.0,0.40850638]
[1740472041197,0.5026965,89974.0,89973.0,0.40850638]
[1740472041371,0.5016965,89974.0,89973.0,0.40850638]
[1740472041585,0.5026965,89974.0,89973.0,0.40150638]
[1740472041991,0.6526965,89974.0,89973.0,0.40850638]
[1740472042244,0.6516965,89974.0,89973.0,0.39450638]
[1740472042668,0.6516965,89974.0,89973.0,0.40150638]
[1740472042815,0.51222798,89974.0,89973.0,0.39450638]
[1740472043117,0.51322798,89974.0,89973.0,0.40850638]
[1740472043906,0.50269598,89974.0,89973.0,0.40850638]
[1740472044382,0.50169598,89974.0,89973.0,0.40150638]
[1740472044629,0.50169598,89974.0,89973.0,0.40850638]
[1740472044985,0.50169598,89974.0,89973.0,0.39450638]
[1740472045367,0.50169598,89974.0,89973.0,0.40850638]
[1740472045572,0.50169598,89974.0,89973.0,0.40150638]
[1740472045778,0.50169598,89974.0,89973.0,0.39450638]
[1740472045974,0.50169598,89974.0,89973.0,0.40150638]
[1740472046553,0.50169598,89974.0,89973.0,0.40850638]
[1740472046673,0.50169598,89974.0,89973.0,0.40150638]
[1740472046880,0.47769598,89974.0,89973.0,0.40150638]
[1740472047090,0.44979598,89974.0,89973.0,0.40150638]
[1740472047296,0.44979598,89974.0,89973.0,0.39450638]
[1740472047652,0.45079598,89974.0,89973.0,0.80150638]
[1740472048177,0.50169598,89974.0,89973.0,0.80150638]
[1740472048319,0.50169598,89974.0,89973.0,0.91880638]
[1740472048525,0.50269598,89974.0,89973.0,0.40150638]
[1740472048720,0.50269598,89974.0,89973.0,0.38696553]
[1740472048927,0.65169598,89974.0,89973.0,0.38696553]
[1740472049315,0.65269598,89974.0,89973.0,0.39396553]
[1740472049511,0.65269598,89974.0,89973.0,0.07033854]
[1740472049846,0.65269598,89974.0,89973.0,0.06333854]
[1740472050048,0.65269598,89974.0,89973.0,0.08487939]
[1740472050275,0.55507105,89974.0,89973.0,0.07033854]
[1740472050450,0.55407105,89974.0,89973.0,0.06333854]
[1740472051286,0.55407105,89974.0,89973.0,0.08487939]
[1740472051622,0.65169605,89974.0,89973.0,0.07800638]
[1740472052176,0.65169605,89974.0,89973.0,0.08300638]
[1740472052376,0.65169605,89974.0,89973.0,0.09000638]
[1740472053299,0.65169605,89974.0,89973.0,0.08300638]
[1740472053509,0.65169605,89974.0,89973.0,0.07800638]
[1740472054051,0.52012922,89974.0,89973.0,0.08500638]
[1740472054392,0.66912922,89974.0,89973.0,0.07800638]
[1740472054713,0.67012922,89974.0,89973.0,0.08500638]
[1740472054912,0.67012922,89974.0,89973.0,0.07800638]
[1740472055161,0.66912922,89974.0,89973.0,0.07100638]
[1740472055351,0.66912922,89974.0,89973.0,0.07800638]
[1740472055537,0.67012922,89974.0,89973.0,0.07800638]
[1740472055989,0.67012922,89974.0,89973.0,0.08500638]
[1740472056333,0.67012922,89974.0,89973.0,0.07800638]
[1740472056536,0.67012922,89974.0,89973.0,0.08500638]
[1740472056734,0.66912922,89974.0,89973.0,0.07800638]
[1740472056943,0.67012922,89974.0,89973.0,0.08500638]
[1740472057520,0.66912922,89974.0,89973.0,0.07800638]
[1740472057730,0.67012922,89974.0,89973.0,0.08487939]
[1740472057933,0.61013278,89974.0,89973.0,0.07033854]
[1740472058093,0.66003278,89974.0,89973.0,0.03685554]
[1740472058799,0.64259961,89974.0,89973.0,0.03685554]
[1740472059002,0.78039961,89974.0,89973.0,0.03685554]
[1740472059250,0.78039961,89974.0,89973.0,0.02985554]
[1740472059488,0.78039961,89974.0,89973.0,0.03685554]
[1740472059653,0.78039961,89974.0,89973.0,0.02985554]
[1740472060049,0.78039961,89974.0,89973.0,0.03685554]
[1740472060475,0.78039961,89974.0,89973.0,0.02985554]
[1740472060676,0.77939961,89974.0,89973.0,0.02985554]
[1740472060878,0.77939961,89974.0,89973.0,0.04439639]
[1740472061078,0.50099961,89974.0,89973.0,0.05152338]
[1740472061401,0.50099961,89974.0,89973.0,0.05230368]
[1740472061727,0.43722264,89974.0,89973.0,0.04530368]
[1740472061942,0.43722264,89974.0,89973.0,0.04730368]
[1740472062115,0.43687863,89974.0,89973.0,0.92432368]
[1740472062277,0.43787863,89974.0,89973.0,0.92854338]
[1740472062679,0.43857543,89974.0,89973.0,0.92754338]
[1740472063126,0.23039249,89974.0,89973.0,0.93454338]
[1740472063337,0.18057374,89974.0,89973.0,0.92754338]
[1740472063656,0.18157374,89974.0,89973.0,0.93454338]
[1740472063789,0.18157374,89974.0,89973.0,0.92854338]
[1740472064131,0.18057374,89974.0,89973.0,0.92854338]
[1740472064437,0.65169674,89974.0,89973.0,0.92854338]
[1740472064635,0.65169674,89974.0,89973.0,0.92154338]
[1740472064930,0.65169674,89974.0,89973.0,0.92854338]
[1740472065309,0.1516968,89974.0,89973.0,0.92854338]
[1740472065477,0.1516968,89974.0,89973.0,0.92154338]
[1740472065830,0.1516968,89974.0,89973.0,0.93554338]
[1740472066259,0.1516968,89974.0,89973.0,0.92854338]
[1740472066459,0.0016968,89974.0,89973.0,0.93554338]
[1740472066752,0.0016968,89974.0,89973.0,1.32854338]
[1740472067109,0.0016968,89974.0,89973.0,1.33554338]
[1740472067319,0.5,89980.0,89979.0,0.00012699]
[1740472067523,2.19923357,89980.0,89979.0,0.89353811]
[1740472067907,2.19923357,89980.0,89979.0,0.9104388]
[1740472068279,2.19923357,89980.0,89979.0,1.0277388]
[1740472068434,2.19923357,89980.0,89979.0,0.9104388]
[1740472068636,1.09953679,89980.0,89979.0,0.9174388]